[Event "74th PGNiG TERMIKA POL-ch Women 2022"]
[Site "Kruszwica"]
[Date "2022.05.14"]
[Round "6.2"]
[White "Rudzinska, Michalina"]
[Black "Kiolbasa, Oliwia"]
[Result "1-0"]
[ECO "C49"]
[WhiteElo "2236"]
[BlackElo "2375"]
[Annotator "TA"]
[PlyCount "59"]
[EventDate "2022.05.09"]
[EventType "tourn"]
[EventCountry "POL"]
[SourceTitle "playchess.com"]
[Source "ChessBase"]
[SourceQuality "1"]
[TimeControl "40/5400+30:1800+30"]

{[%evp 18,59,22,23,16,20,31,26,25,16,30,18,28,29,13,10,0,0,36,0,0,0,396,120,373,384,610,587,906,983,952,966,806,555,852,835,978,966,936,958,825,837,6159,981]} 1. e4 {[%emt 0:00:02]} e5 {[%emt 0:00:08]} 2. Nf3 {[%emt 0:00:08]} Nc6 {[%emt 0:00:07]} 3. Nc3 {[%emt 0:00:07]} Nf6 {[%emt 0:00:15]} 4. Bb5 {[%emt 0:00:09]} Bb4 {[%emt 0:00:19]} 5. O-O {[%emt 0:00:10]} O-O {[%emt 0:00:38]} 6. d3 {[%emt 0:00:07]} Bxc3 {[%emt 0:01:04]} 7. bxc3 {[%emt 0:00:08]} d6 {[%emt 0:00:25]} 8. Bg5 {[%emt 0:00:09]} h6 {[%emt 0:00:52]} 9. Bh4 {[%emt 0:00:09]} Qe7 {[%emt 0:00:17]} 10. Re1 {[%emt 0:00:35]} a6 {[%emt 0:02:18] C49: Four Knights: 4 Bb5 Bb4.} 11. Ba4 {[%emt 0:00:08]} b5 {[%emt 0:00:41]} 12. Bb3 {[%emt 0:00:08]} Na5 {[%emt 0:00:23] White has an edge.} 13. d4 {[%emt 0:06:22]} g5 {[%emt 0:21:59] [#]} 14. Nxg5 $146 {[%emt 0:23:24]} ({Predecessor:} 14. Bg3 Nxb3 15. axb3 exd4 16. e5 dxe5 17. Rxe5 Be6 18. Nxd4 Nd7 19. Re3 Nf6 20. Qf3 {1-0 (33) Bellia,F (2443)-Kierzek,M (2011) Walbrzych 2018}) 14... hxg5 {[%emt 0:05:53]} (14... Nxb3 15. axb3) 15. Bxg5 {[%emt 0:00:17]} Nxb3 {[%emt 0:03:18]} 16. cxb3 {[%emt 0:03:34]} Kg7 {[%emt 0:05:37]} 17. f4 {[%emt 0:20:24] aiming for fxe5.} Qd7 {[%emt 0:18:58]} 18. f5 {[%emt 0:22:28] Hoping for Re3.} (18. Qf3 $5 {[%cal Rd4e5]}) 18... Rh8 {[%emt 0:09:34]} 19. Re3 {[%emt 0:00:57] And now Rg3 would win.} Ne8 $2 {[%emt 0:15:59][%mdl 8192] [#]} (19... Qe7 $11 {and Black stays safe.}) 20. Qg4 $2 {[%emt 0:03:50]} (20. dxe5 $1 $18 {is the precise move to win. Threatens to win with Qg4.} dxe5 21. Qg4) 20... Kf8 $2 {[%emt 0:02:07][%mdl 8192] This costs Black the game.} (20... f6 $16) 21. dxe5 $18 {[%emt 0:01:39][%cal Bd4e5,Be5f6][%mdl 32]} ({Less strong is} 21. Rh3 Rxh3 22. Qxh3 f6 $18) 21... f6 {[%emt 0:02:16]} (21... dxe5 $142 22. Rd1 Qc6) 22. exf6 {[%emt 0:01:14] White is clearly winning.} c5 {[%emt 0:04:25]} 23. Rh3 {[%emt 0:01:32]} Rxh3 {[%emt 0:00:30]} 24. Qxh3 {[%emt 0:00:07] Qh8+ would kill now.} Kg8 {[%emt 0:00:27] Prevents Qh8+.} 25. Qh5 {[%emt 0:02:25]} Ra7 {[%emt 0:02:22]} 26. Qg6+ {[%emt 0:01:29]} Kh8 {[%emt 0:00:06]} 27. Rf1 {[%emt 0:00:49] White threatens Rf4 and mate.} Qf7 {[%emt 0:01:14]} 28. Rf4 {[%emt 0:00:50] White wants to mate with Rh4+.} Qxg6 {[%emt 0:00:42]} 29. fxg6 {[%emt 0:00:06] Intending f7 and mate.} Ng7 {[%emt 0:00:46]} 30. Rh4+ {[%emt 0:00:08] Weighted Error Value: White=0.33/Black=1.03} (30. f7 $142 Rxf7 31. gxf7) 1-0

[Event "74th PGNiG TERMIKA POL-ch Women 2022"]
[Site "Kruszwica"]
[Date "2022.05.14"]
[Round "6.3"]
[White "Kubicka, Anna"]
[Black "Majdan, Joanna"]
[Result "1/2-1/2"]
[ECO "B51"]
[WhiteElo "2245"]
[BlackElo "2325"]
[Annotator "TA"]
[PlyCount "67"]
[EventDate "2022.05.09"]
[EventType "tourn"]
[EventCountry "POL"]
[SourceTitle "playchess.com"]
[Source "ChessBase"]
[SourceQuality "1"]
[TimeControl "40/5400+30:1800+30"]

{[%evp 9,67,20,25,15,19,12,12,14,4,18,15,7,4,-1,37,-29,-39,-27,0,-96,-105,-102,-92,-101,-80,-122,-129,-118,-113,-133,-77,-68,-68,-63,-63,-68,-65,-73,-50,-41,0,-66,78,78,66,71,71,81,56,87,72,54,58,0,0,0,42,0,0,0]} 1. e4 {[%emt 0:00:17]} c5 {[%emt 0:00:15]} 2. Nf3 {[%emt 0:00:12]} d6 {[%emt 0:00:17]} 3. Bb5+ {[%emt 0:00:06]} Nd7 {[%emt 0:01:10]} 4. c3 {[%emt 0:00:08]} a6 {[%emt 0:01:31]} 5. Bd3 {[%emt 0:00:05]} Ngf6 {[%emt 0:01:03]} 6. O-O {[%emt 0:00:24] B51: Sicilian: Moscow Variation (3 Bb5+) without 3...Bd7.} b5 {[%emt 0:03:16]} 7. a4 {[%emt 0:01:14]} Bb7 {[%emt 0:01:32]} 8. Re1 {[%emt 0:00:59]} e6 {[%emt 0:07:19]} 9. Bc2 {[%emt 0:00:47]} c4 {[%emt 0:01:41]} 10. d4 {[%emt 0:04:55]} cxd3 {[%emt 0:01:42]} 11. Bxd3 {[%emt 0:01:30]} Be7 {[%emt 0:06:16] [#]} (11... bxa4 {is more complex.} 12. Qxa4 Be7 13. e5 dxe5 14. Nxe5 O-O) 12. Nbd2 $146 {[%emt 0:02:17]} (12. axb5 $14 axb5 13. Rxa8 Qxa8 14. Nfd2 (14. Bxb5 Bxe4 15. Nbd2 Bc6 $11)) ({Predecessor:} 12. axb5 axb5 13. Rxa8 Qxa8 14. Nbd2 O-O 15. b4 Rc8 16. Qb3 d5 17. e5 Ne4 18. Bb2 {½-½ (28) Abdusattorov,N (2486)-Wei,Y (2748) Ashkhabad 2017}) 12... Nc5 $11 {[%emt 0:05:27][%csl LRa4,LRd3]} 13. Bc2 {[%emt 0:03:24][%cal Bd3c2,Bc2a4,Ba4b3,Bb3d1,Bd1h5][%mdl 32]} bxa4 {[%emt 0:00:06]} (13... O-O {looks sharper.} 14. e5 dxe5 15. Nxe5 Qd5) 14. Rxa4 {[%emt 0:09:40]} (14. e5 $11 dxe5 15. Bxa4+ Nxa4 16. Qxa4+ Qd7 17. Nxe5 Qxa4 18. Rxa4) 14... Nxa4 $17 {[%emt 0:05:22]} 15. Bxa4+ {[%emt 0:00:17]} Kf8 {[%emt 0:01:10]} 16. Nd4 {[%emt 0:02:37]} Qc7 {[%emt 0:06:15]} 17. Qf3 {[%emt 0:10:11]} h5 {[%emt 0:09:47]} 18. Bb3 {[%emt 0:01:21][%cal Ob3e6]} Kg8 {[%emt 0:07:23]} 19. Qh3 {[%emt 0:08:11][%cal Ob3e6]} d5 {[%emt 0:06:55]} (19... Bc8 $142 20. Qd3 h4) 20. e5 {[%emt 0:05:50]} Ng4 {[%emt 0:02:32]} 21. Qg3 {[%emt 0:06:41]} a5 {[%emt 0:01:36][%cal Ba6a5,Ba5a4][%mdl 32]} 22. Bd1 {[%emt 0:02:57]} a4 {[%emt 0:04:34]} 23. h3 {[%emt 0:02:30]} Nh6 {[%emt 0:00:07]} (23... Bc5 $5 {[%cal Rc5d4]} 24. N2f3 Nh6 $17) 24. Bxh5 {[%emt 0:01:39]} Qb6 {[%emt 0:05:49]} (24... Nf5 $2 25. Bxf7+ $1 {[%mdl 512]} Kxf7 26. Nxf5 $18) 25. N2f3 {[%emt 0:10:15]} (25. Bd1 $11) 25... Nf5 {[%emt 0:05:48] [#]} (25... Rf8 $15 {stays ahead.} 26. Nh4 Rh7) 26. Nxf5 $1 $16 {[%emt 0:00:46]} exf5 {[%emt 0:00:06] [#]} 27. e6 $1 {[%emt 0:02:08] Chess con chili.} Rxh5 {[%emt 0:03:51]} 28. exf7+ {[%emt 0:00:04]} Kxf7 {[%emt 0:02:46] [#] ...Bf8 is the strong threat.} 29. Rxe7+ {[%emt 0:00:58]} Kxe7 {[%emt 0:00:05]} 30. Qxg7+ {[%emt 0:00:05]} Ke8 {[%emt 0:00:36][%cal Oa4a3]} 31. Qg8+ {[%emt 0:01:32][%mdl 1024] White has compensation.} Ke7 {[%emt 0:00:31]} 32. Qg7+ {[%emt 0:00:50]} Ke8 {[%emt 0:00:34][%cal Oa4a3]} 33. Qg8+ {[%emt 0:15:47]} Ke7 {[%emt 0:00:05]} 34. Qg7+ {[%emt 0:00:30] Weighted Error Value: White=0.20 (precise) /Black=0.19 (very precise)} 1/2-1/2

[Event "74th PGNiG TERMIKA POL-ch Women 2022"]
[Site "Kruszwica"]
[Date "2022.05.14"]
[Round "6.4"]
[White "Zawadzka, Jolanta"]
[Black "Antolak, Julia"]
[Result "1/2-1/2"]
[ECO "B12"]
[WhiteElo "2409"]
[BlackElo "2371"]
[Annotator "TA"]
[PlyCount "80"]
[EventDate "2022.05.09"]
[EventType "tourn"]
[EventCountry "POL"]
[SourceTitle "playchess.com"]
[Source "ChessBase"]
[SourceQuality "1"]
[TimeControl "40/5400+30:1800+30"]

{[%evp 9,80,21,30,14,47,28,68,68,82,77,75,16,20,32,18,34,63,3,12,18,44,51,84,0,58,60,56,4,83,45,45,10,7,0,0,-25,-5,-83,-8,-14,-22,-11,-16,-39,-32,-52,-48,-49,-43,-47,-36,-39,-27,-84,0,0,0,0,0,-8,-8,-8,-8,-8,-14,-32,-22,-29,-37,-33,0,0,0]} 1. e4 {[%emt 0:00:02]} c6 {[%emt 0:00:04]} 2. d4 {[%emt 0:00:09]} d5 {[%emt 0:00:06]} 3. e5 {[%emt 0:00:04]} c5 {[%emt 0:00:23]} 4. dxc5 {[%emt 0:00:07]} e6 {[%emt 0:00:05]} 5. Bd3 {[%emt 0:00:14]} Bxc5 {[%emt 0:02:28]} 6. Qg4 {[%emt 0:00:49] B12: Caro-Kann: Advance Variation.} Ne7 {[%emt 0:03:45]} 7. Nf3 {[%emt 0:00:29]} Nbc6 {[%emt 0:02:30][%cal Bb8c6,Bc6e5,Be5d3][%mdl 32] [#]} 8. Qxg7 $146 {[%emt 0:00:39] White is slightly better.} ({Predecessor:} 8. O-O Ng6 9. a3 O-O 10. Qg3 f6 11. b4 Bb6 12. Bxg6 hxg6 13. Bb2 Bc7 14. Nbd2 {1-0 (42) So,W (2778)-Tabatabaei,M (2623) Chess.com INT 2022}) 8... Rg8 {[%emt 0:01:32]} 9. Qxh7 {[%emt 0:00:23] And now 0-0 would win. White is more active.} Qc7 {[%emt 0:09:04] [#]} ({Don't play} 9... Rxg2 $6 10. Nc3 $11) 10. Kf1 {[%emt 0:13:49]} (10. Bf4 $1 $16) 10... Nxe5 {[%emt 0:07:51]} 11. Bf4 $1 {[%emt 0:04:17]} Bd6 {[%emt 0:03:34] Threatens to win with ...Nxf3.} 12. Nc3 {[%emt 0:02:01] Strongly threatening Nb5.} Nxd3 {[%emt 0:06:54]} 13. Bxd6 {[%emt 0:01:49]} (13. Nb5 $1 $14 Nxf4 14. Nxc7+ Bxc7 15. g3) 13... Qxd6 $11 {[%emt 0:00:27]} 14. Qxd3 {[%emt 0:01:08]} Bd7 {[%emt 0:00:16]} 15. Re1 {[%emt 0:19:49] Against e5} Rc8 {[%emt 0:09:30]} 16. Qd4 {[%emt 0:21:03] Inhibits Qb4.} (16. Ne5 $16) 16... Qa6+ {[%emt 0:10:35]} (16... Rc4 $11 17. Qxa7 f6) 17. Kg1 $14 {[%emt 0:02:43]} Rc4 {[%emt 0:00:50]} 18. Qd3 {[%emt 0:00:52]} (18. Qe5 $14) 18... Qa5 {[%emt 0:13:10]} (18... f6 $11) 19. h4 {[%emt 0:01:28] aiming for Ne5.} Qb4 {[%emt 0:03:59]} 20. Ne5 {[%emt 0:05:40]} Rxh4 {[%emt 0:04:06]} 21. Rxh4 {[%emt 0:00:57]} Qxh4 {[%emt 0:00:05]} 22. Qf3 {[%emt 0:04:23] Chess con chili.} f6 {[%emt 0:03:17]} 23. Nd3 {[%emt 0:01:38]} (23. Nxd7 $11 Kxd7 24. g3 (24. Qe2 Qh3 $17)) 23... Qg4 {[%emt 0:00:37]} ({Better is} 23... Rh8 $17 {[%csl Gh8][%cal Rh4h1]} 24. g3 Qh6) 24. Qxg4 $11 {[%emt 0:00:31]} Rxg4 {[%emt 0:00:01]} 25. f3 {[%emt 0:00:23]} Rc4 {[%emt 0:00:40]} 26. f4 {[%emt 0:00:50]} Kf7 {[%emt 0:02:01]} 27. Re2 {[%emt 0:01:02]} Nf5 {[%emt 0:02:11]} 28. g4 {[%emt 0:04:44]} Nd4 {[%emt 0:00:42]} 29. Rg2 {[%emt 0:00:12]} b5 {[%emt 0:03:26]} 30. a3 {[%emt 0:03:55] Against b4} a5 {[%emt 0:00:35]} 31. Ne1 {[%emt 0:00:40]} (31. g5 $11 {keeps the balance.}) 31... Nc6 {[%emt 0:02:58]} ({Black should try} 31... b4 $17 32. axb4 axb4) 32. Nxb5 {[%emt 0:02:57] Hoping for Nd6+.} Rxf4 {[%emt 0:00:13] ...Ne5 is the strong threat.} 33. Nd3 {[%emt 0:00:03]} Rf3 {[%emt 0:00:20]} 34. Nc5 {[%emt 0:00:07]} Ne5 {[%emt 0:01:28]} 35. Nd4 {[%emt 0:00:32] Pair of Knights!} Rf4 {[%emt 0:00:49][%csl LRd4,LRg4]} 36. c3 {[%emt 0:00:13]} Bc8 {[%emt 0:01:19]} 37. g5 {[%emt 0:02:15]} fxg5 {[%emt 0:01:43]} 38. Rxg5 {[%emt 0:00:13] [#]} Rxd4 $1 {[%emt 0:02:33]} 39. Rxe5 {[%emt 0:00:04]} Rd2 {[%emt 0:00:15]} (39... Rc4 $5 {[%cal Rc4c5]} 40. Nd3 Ke7 $15) 40. b4 {[%emt 0:00:00]} axb4 {[%emt 0:00:00] Weighted Error Value: White=0.20 (precise) /Black=0.19 (very precise)} 1/2-1/2

[Event "74th PGNiG TERMIKA POL-ch Women 2022"]
[Site "Kruszwica"]
[Date "2022.05.14"]
[Round "6.5"]
[White "Kulon, Klaudia"]
[Black "Cyfka, Karina"]
[Result "1/2-1/2"]
[ECO "A21"]
[WhiteElo "2305"]
[BlackElo "2404"]
[Annotator "TA"]
[PlyCount "127"]
[EventDate "2022.05.09"]
[EventType "tourn"]
[EventCountry "POL"]
[SourceTitle "playchess.com"]
[Source "ChessBase"]
[SourceQuality "1"]
[TimeControl "40/5400+30:1800+30"]

{[%evp 10,127,15,9,12,0,0,-6,-15,-47,-45,-27,-22,-17,7,0,33,-14,-18,-16,-23,-8,-7,-8,-16,-28,-10,-14,0,0,0,0,0,0,0,0,0,0,0,-27,0,0,0,0,0,0,10,0,81,81,81,81,82,80,138,122,153,142,175,195,306,321,299,278,336,361,346,328,298,241,226,179,320,198,189,24,72,8,8,8,8,8,8,8,8,8,8,8,8,8,8,8,8,8,8,8,8,8,8,8,8,8,8,8,8,8,8,8,8,8,8,8,8,8,8,8,8,8,8,8]} 1. c4 {[%emt 0:00:03]} e5 {[%emt 0:00:17]} 2. Nc3 {[%emt 0:00:12]} Bb4 {[%emt 0:00:06]} 3. d3 {[%emt 0:01:03]} Bxc3+ {[%emt 0:02:12]} 4. bxc3 {[%emt 0:00:04]} d6 {[%emt 0:00:22]} 5. g3 {[%emt 0:03:38]} Nc6 {[%emt 0:02:40]} 6. Bg2 {[%emt 0:00:08]} Nge7 $1 {[%emt 0:01:58] 6...Nge7 is better than 6...f5. A21: English Opening: 1...e5 2 Nc3.} 7. e4 {[%emt 0:01:11]} O-O {[%emt 0:05:06]} 8. Rb1 {[%emt 0:02:43]} Rb8 {[%emt 0:02:30]} 9. Ne2 {[%emt 0:01:09] [#]} f5 $146 {[%emt 0:01:47]} ({Predecessor:} 9... Be6 10. O-O Qd7 11. f4 f5 12. fxe5 dxe5 13. Ba3 b6 14. Qc2 Rf6 15. Rbd1 fxe4 16. Rxf6 gxf6 17. Bxe4 {1-0 (37) Ingebretsen,J (2276)-Andersen,A (2149) Larvik 2019}) 10. exf5 {[%emt 0:04:58]} Bxf5 {[%emt 0:00:32]} 11. h3 {[%emt 0:06:46]} Qd7 {[%emt 0:14:42]} 12. g4 $1 {[%emt 0:02:30]} Be6 {[%emt 0:06:07]} 13. O-O {[%emt 0:08:47]} (13. f4 $1 $14) 13... h5 $11 {[%emt 0:05:33]} 14. f3 {[%emt 0:01:02]} d5 {[%emt 0:10:13]} 15. c5 {[%emt 0:02:18]} Ng6 {[%emt 0:03:19]} 16. Bg5 {[%emt 0:07:41] Against Nh4} hxg4 {[%emt 0:12:16]} 17. fxg4 {[%emt 0:00:05]} Rxf1+ {[%emt 0:00:23]} 18. Qxf1 {[%emt 0:01:29]} Nd8 {[%emt 0:02:04]} (18... Rf8 {is interesting.} 19. Qc1 d4 20. cxd4 Nf4) 19. d4 {[%emt 0:10:43]} Nf7 {[%emt 0:03:25]} 20. Be3 {[%emt 0:00:35]} c6 {[%emt 0:01:43]} 21. Qf2 {[%emt 0:01:46]} Rf8 {[%emt 0:02:18][%cal Of7g5]} 22. Qg3 {[%emt 0:00:07]} Qe7 {[%emt 0:01:02]} 23. Kh2 {[%emt 0:01:04]} Bc8 {[%emt 0:00:35]} 24. Ng1 {[%emt 0:08:50]} exd4 {[%emt 0:08:52]} 25. cxd4 {[%emt 0:06:03]} Ng5 {[%emt 0:00:13]} 26. Bxg5 {[%emt 0:01:48]} Qxg5 {[%emt 0:00:05]} 27. Nf3 {[%emt 0:00:39] Against Qd2} Qf6 {[%emt 0:03:30]} 28. Rf1 {[%emt 0:02:12]} Qf4 {[%emt 0:00:56]} (28... Nf4 $11 {remains equal.}) 29. Qxf4 $16 {[%emt 0:02:18]} Nxf4 {[%emt 0:00:15] [#]} 30. Re1 $1 {[%emt 0:01:09] Prevents Re8.} Ne6 {[%emt 0:00:21]} 31. Kg3 {[%emt 0:00:37]} Nc7 {[%emt 0:01:28]} ({Black should play} 31... g5) 32. a4 {[%emt 0:01:26] White is more active.} Ne6 {[%emt 0:01:36]} 33. h4 {[%emt 0:02:06] Inhibits g5.} Nc7 {[%emt 0:02:34]} 34. Bf1 {[%emt 0:05:04]} Re8 {[%emt 0:00:07]} (34... Ne6 $142 35. Bd3 Rf6) 35. Rxe8+ $18 {[%emt 0:00:21]} Nxe8 {[%emt 0:00:02][%mdl 4096] Endgame KBN-KBN} 36. Bd3 {[%emt 0:00:22]} Nc7 {[%emt 0:02:09]} 37. Kf4 {[%emt 0:03:07]} b6 {[%emt 0:01:36]} 38. cxb6 {[%emt 0:03:07]} axb6 {[%emt 0:00:05]} 39. g5 {[%emt 0:00:41]} c5 {[%emt 0:02:03]} 40. Ke5 {[%emt 0:00:00] [#] Hoping for dxc5.} Bg4 {[%emt 0:00:00]} (40... c4 $142) 41. Ne1 {[%emt 0:10:52]} Ne6 {[%emt 0:08:15]} 42. Nc2 {[%emt 0:08:22]} ({Resist} 42. Kxd5 Nxd4 43. Kd6 Bd1 $16) (42. dxc5 $18 Nxc5 43. Bc2 (43. Kxd5 Nxa4 44. Bg6 Kf8 $16)) 42... cxd4 {[%emt 0:02:54]} (42... Nxd4 $1 $11 {feels stronger.} 43. Nxd4 cxd4) 43. Nxd4 {[%emt 0:09:56]} (43. Nb4 $16) 43... Nxd4 $11 {[%emt 0:04:45] The position is equal.} 44. Kxd4 {[%emt 0:00:04] KB-KB} Bd1 {[%emt 0:00:07]} 45. Bb5 {[%emt 0:00:04]} Kf7 {[%emt 0:04:59]} 46. Kxd5 {[%emt 0:02:08] Intending Kd6 and mate.} Kg6 $1 {[%emt 0:01:15]} 47. Ke6 {[%emt 0:05:07] White wants to mate with Be8+.} Bb3+ {[%emt 0:02:54]} 48. Ke7 {[%emt 0:00:37]} Kh5 {[%emt 0:01:02]} 49. Kf8 $1 {[%emt 0:01:04]} g6 {[%emt 0:00:11]} (49... Kxh4 $2 50. g6 $18) 50. Kg7 {[%emt 0:00:06]} Bc2 {[%emt 0:00:24]} 51. Be8 {[%emt 0:01:49]} Bb1 {[%emt 0:00:43]} 52. Kf6 {[%emt 0:00:20]} Bc2 {[%emt 0:00:29]} 53. Bf7 {[%emt 0:00:37]} Bb1 {[%emt 0:00:35]} 54. Kg7 {[%emt 0:01:45]} Bc2 {[%emt 0:00:53]} 55. Kh7 {[%emt 0:00:04]} Bxa4 {[%emt 0:07:13]} 56. Bxg6+ {[%emt 0:00:03]} Kxh4 {[%emt 0:00:05]} 57. Kh6 {[%emt 0:00:02]} Bb3 {[%emt 0:00:26]} 58. Bd3 {[%emt 0:01:47] aiming for g6.} Bf7 {[%emt 0:00:09]} 59. Bb5 {[%emt 0:00:51]} Bh5 {[%emt 0:00:33]} 60. Bc6 {[%emt 0:00:15]} Bf7 {[%emt 0:00:06]} 61. Ba4 {[%emt 0:00:11]} Bh5 {[%emt 0:00:13]} 62. Bc2 {[%emt 0:00:11]} b5 {[%emt 0:00:43]} 63. g6 {[%emt 0:03:06]} Bxg6 {[%emt 0:00:06]} 64. Kxg6 {[%emt 0:00:03] Black escapes into a draw.  Weighted Error Value: White=0.11 (very precise) /Black=0.13 (very precise)} 1/2-1/2

[Event "74th PGNiG TERMIKA POL-ch Women 2022"]
[Site "Kruszwica"]
[Date "2022.05.15"]
[Round "7.1"]
[White "Socko, Monika"]
[Black "Rudzinska, Michalina"]
[Result "1/2-1/2"]
[ECO "E28"]
[WhiteElo "2384"]
[BlackElo "2236"]
[Annotator "TA"]
[PlyCount "105"]
[EventDate "2022.05.09"]
[EventType "tourn"]
[EventCountry "POL"]
[SourceTitle "playchess.com"]
[Source "ChessBase"]
[SourceQuality "1"]
[TimeControl "40/5400+30:1800+30"]

{[%evp 16,105,-8,-6,-1,-36,-12,-19,-9,-7,0,-7,16,-12,0,0,19,15,14,13,0,-17,0,0,16,0,35,0,0,0,54,0,0,0,0,0,0,0,0,0,0,0,0,0,0,-69,-71,-99,-92,-102,-92,-85,-86,-152,-148,-243,-239,-320,-240,-313,-139,-126,-131,-116,-29,-30,-5,-8,0,0,9,0,8,0,0,-8,-8,-9,-8,-8,-8,-8,-8,-8,-8,-8,-8,-8,0,0,0,0]} 1. d4 {[%emt 0:00:04]} Nf6 {[%emt 0:00:08]} 2. c4 {[%emt 0:00:05]} e6 {[%emt 0:00:07]} 3. Nc3 {[%emt 0:00:05]} Bb4 {[%emt 0:00:09]} 4. e3 {[%emt 0:00:31]} O-O {[%emt 0:00:11]} 5. a3 {[%emt 0:03:33]} Bxc3+ {[%emt 0:00:47]} 6. bxc3 {[%emt 0:00:03]} d6 {[%emt 0:05:25]} 7. Nf3 {[%emt 0:01:21]} c5 {[%emt 0:00:38]} 8. Bd3 {[%emt 0:00:29]} Nc6 {[%emt 0:00:22]} 9. O-O {[%emt 0:01:58] 9.e4 is more advanced technology.} e5 {[%emt 0:01:31] E29: Nimzo-Indian: Sämisch: 5...0-0 6 e3 c5 7 Bd3 Nc6.} 10. d5 {[%emt 0:02:48]} e4 {[%emt 0:07:01]} 11. dxc6 {[%emt 0:00:10][%cal Od3e2]} bxc6 {[%emt 0:00:25]} 12. Be2 {[%emt 0:00:19] [#] Threatens to win with Nd2.} exf3 {[%emt 0:00:09]} 13. Bxf3 {[%emt 0:00:02]} Qc7 {[%emt 0:02:43]} 14. Qa4 {[%emt 0:08:42] [#]} Bb7 $146 {[%emt 0:02:38]} ({Predecessor:} 14... Bd7 15. e4 Rfe8 16. Qc2 Bg4 17. Bxg4 Nxg4 18. Bf4 Ne5 19. Bxe5 dxe5 {½-½ (19) Silfver,T (1880)-Stevens,M (1816) ICCF email 2010}) 15. Rb1 {[%emt 0:04:50]} Rfc8 {[%emt 0:05:34]} 16. Rd1 {[%emt 0:14:16]} Nd7 {[%emt 0:02:26][%cal Bf6d7,Bd7b6,Bb6c4][%mdl 32]} 17. e4 {[%emt 0:05:13]} Nb6 {[%emt 0:03:32]} 18. Qc2 {[%emt 0:00:19]} Nxc4 {[%emt 0:07:22]} 19. Be2 {[%emt 0:01:14]} Ne5 {[%emt 0:16:48]} 20. f4 {[%emt 0:05:17][%mdl 1024] White has compensation.} Ng6 {[%emt 0:00:15]} 21. c4 {[%emt 0:05:18][%cal Oh2h4]} Re8 {[%emt 0:03:10]} 22. Rb3 {[%emt 0:03:07]} Rad8 {[%emt 0:09:59]} (22... Ba6 $11) 23. Rg3 {[%emt 0:05:21]} ({Better is} 23. f5 $1 $14 Ne5 24. f6) 23... d5 $11 {[%emt 0:03:29]} 24. f5 {[%emt 0:05:59]} Ne5 {[%emt 0:00:31]} 25. Bh6 {[%emt 0:08:00]} g6 $36 {[%emt 0:00:27][%mdl 2048] Black has the initiative.} 26. Bg5 {[%emt 0:01:04] A strong pair of Bishops.} Rd6 {[%emt 0:02:20]} 27. Bf4 {[%emt 0:01:39]} dxe4 {[%emt 0:03:19]} 28. Rxd6 {[%emt 0:07:17]} Qxd6 {[%emt 0:00:07]} 29. Qxe4 {[%emt 0:00:23] Strongly threatening Re3.} Qd4+ {[%emt 0:07:21]} 30. Qxd4 {[%emt 0:00:29]} (30. Re3 $1 $11 f6 31. fxg6) 30... cxd4 $15 {[%emt 0:00:07]} 31. c5 {[%emt 0:00:06]} Bc8 {[%emt 0:03:45]} 32. fxg6 {[%emt 0:00:53]} hxg6 {[%emt 0:00:35]} 33. Kf2 {[%emt 0:00:52]} Bf5 {[%emt 0:01:46]} 34. h3 {[%emt 0:06:32]} ({White should try} 34. Rb3) 34... Bc2 $17 {[%emt 0:01:54]} 35. Ba6 {[%emt 0:03:48]} (35. Bxe5 $17 {was called for.} Rxe5 36. Rg4) 35... Kg7 {[%emt 0:05:18]} 36. Bc1 {[%emt 0:02:13]} f6 {[%emt 0:03:21]} 37. h4 {[%emt 0:01:19]} Nd7 {[%emt 0:00:42]} (37... Rh8 $19 {is more deadly.} 38. Rh3 Rb8) 38. Bd3 {[%emt 0:02:10]} Bxd3 {[%emt 0:00:20]} 39. Rxd3 {[%emt 0:00:01]} Nxc5 {[%emt 0:02:30]} ({Black should play} 39... Re4 $17 40. Bb2 Rxh4 41. Bxd4 Kf7) 40. Rxd4 {[%emt 0:00:00][%mdl 4096] Endgame KRB-KRN} f5 {[%emt 0:00:00]} 41. Be3 {[%emt 0:08:56] The position is equal.} Ne4+ {[%emt 0:06:14]} 42. Kf3 {[%emt 0:01:26]} Re7 {[%emt 0:01:52]} 43. Rc4 {[%emt 0:02:31]} Rc7 {[%emt 0:01:05]} 44. Bf4 {[%emt 0:03:17]} c5 {[%emt 0:03:08]} 45. Bxc7 {[%emt 0:06:14]} Nd2+ {[%emt 0:00:13]} 46. Kf4 {[%emt 0:00:21]} Nxc4 $11 {[%emt 0:00:07] KB-KN} 47. Bb8 {[%emt 0:00:12]} a5 {[%emt 0:02:35]} 48. Ba7 {[%emt 0:00:41]} Nxa3 {[%emt 0:00:21] [#] aiming for ...c4.} 49. Bxc5 {[%emt 0:00:03]} Nc2 {[%emt 0:01:36] With the idea ...Kf6.} 50. h5 {[%emt 0:01:14]} gxh5 {[%emt 0:08:20] White must now prevent ...Kf6.} 51. Kxf5 {[%emt 0:00:19]} Ne1 {[%emt 0:00:10]} 52. Bd4+ {[%emt 0:01:51]} Kf7 {[%emt 0:00:21]} 53. Bc3 {[%emt 0:00:14][%csl LRa5,LRe1] And White is the lucky defender.  Weighted Error Value: White=0.16 (very precise) /Black=0.17 (very precise)} 1/2-1/2